[Event "*** Titled Tuesday Blitz"]
[Site "Chess.com"]
[Date "2020.05.26"]
[Round "9"]
[White "Efremov_Vlad"]
[Black "Khayala13"]
[Result "0-1"]
[WhiteElo "2152"]
[BlackElo "2321"]
[TimeControl "180+1"]
[EndTime "11:51:54 PDT"]
[Termination "Khayala13 won on time"]

1. c4 {[%clk 0:03:00.9]} 1... e5 {[%clk 0:02:59.3]} 2. g3 {[%clk 0:03:01]} 2...
Nf6 {[%clk 0:02:59.2]} 3. Bg2 {[%clk 0:03:01.2]} 3... d5 {[%clk 0:02:59.5]} 4.
cxd5 {[%clk 0:03:01.4]} 4... Nxd5 {[%clk 0:03:00.4]} 5. Nf3 {[%clk 0:03:01.2]}
5... Nc6 {[%clk 0:02:59.7]} 6. d3 {[%clk 0:02:56.7]} 6... Be7 {[%clk 0:02:59.4]}
7. O-O {[%clk 0:02:56.5]} 7... Be6 {[%clk 0:02:59.2]} 8. b3 {[%clk 0:02:55.5]}
8... O-O {[%clk 0:02:58.1]} 9. Bb2 {[%clk 0:02:55.4]} 9... f6 {[%clk 0:02:58.2]}
10. Nbd2 {[%clk 0:02:55.4]} 10... a6 {[%clk 0:02:56.1]} 11. Rc1 {[%clk
0:02:52.3]} 11... Qd7 {[%clk 0:02:54.4]} 12. Ne4 {[%clk 0:02:49.6]} 12... Bh3
{[%clk 0:02:50.6]} 13. Nc5 {[%clk 0:02:44.6]} 13... Bxc5 {[%clk 0:02:48.7]} 14.
Rxc5 {[%clk 0:02:45.1]} 14... Bxg2 {[%clk 0:02:49.3]} 15. Kxg2 {[%clk
0:02:45.7]} 15... Kh8 {[%clk 0:02:44.9]} 16. a3 {[%clk 0:02:41.7]} 16... Rae8
{[%clk 0:02:38.9]} 17. b4 {[%clk 0:02:38.3]} 17... Rd8 {[%clk 0:02:26.5]} 18.
Qb3 {[%clk 0:02:28.6]} 18... Nce7 {[%clk 0:02:20.4]} 19. Rfc1 {[%clk 0:02:25.5]}
19... c6 {[%clk 0:02:20.2]} 20. a4 {[%clk 0:02:11.9]} 20... Qg4 {[%clk
0:02:18.3]} 21. R5c4 {[%clk 0:01:34]} 21... Qg6 {[%clk 0:01:50.3]} 22. Kh1
{[%clk 0:01:34]} 22... Nf5 {[%clk 0:01:40.4]} 23. b5 {[%clk 0:01:28.6]} 23...
Nd6 {[%clk 0:01:37.2]} 24. Rc5 {[%clk 0:01:25.3]} 24... axb5 {[%clk 0:01:36.4]}
25. axb5 {[%clk 0:01:23.7]} 25... Nxb5 {[%clk 0:01:35.1]} 26. h4 {[%clk
0:00:52.4]} 26... e4 {[%clk 0:01:32.3]} 27. dxe4 {[%clk 0:00:49.5]} 27... Qxe4
{[%clk 0:01:33.2]} 28. Qc2 {[%clk 0:00:28.7]} 28... Qe6 {[%clk 0:01:20.6]} 29.
Rc4 {[%clk 0:00:16]} 29... Nd6 {[%clk 0:01:17.7]} 30. Rd4 {[%clk 0:00:11.6]}
30... Rfe8 {[%clk 0:01:11.9]} 31. e3 {[%clk 0:00:10.7]} 31... Nf5 {[%clk
0:01:05.2]} 32. Rc4 {[%clk 0:00:07.8]} 32... Nfxe3 {[%clk 0:00:58]} 33. fxe3
{[%clk 0:00:07.8]} 33... Nxe3 {[%clk 0:00:58.7]} 34. Qe2 {[%clk 0:00:06.9]}
34... Nxc4 {[%clk 0:00:41]} 35. Qxe6 {[%clk 0:00:07.8]} 35... Rxe6 {[%clk
0:00:41.3]} 36. Rxc4 {[%clk 0:00:08]} 36... Rd1+ {[%clk 0:00:41.4]} 37. Kg2
{[%clk 0:00:03.6]} 37... Re2+ {[%clk 0:00:40.4]} 38. Kh3 {[%clk 0:00:04.2]}
38... Rxb2 {[%clk 0:00:40.6]} 39. Re4 {[%clk 0:00:04.9]} 39... h5 {[%clk
0:00:38.5]} 40. Re8+ {[%clk 0:00:04.5]} 40... Kh7 {[%clk 0:00:38.7]} 0-1

[Event "*** Titled Tuesday Blitz"]
[Site "Chess.com"]
[Date "2020.05.26"]
[Round "9"]
[White "AttilaTurzo"]
[Black "CrazyMartian"]
[Result "1-0"]
[WhiteElo "2445"]
[BlackElo "2305"]
[TimeControl "180+1"]
[EndTime "11:51:58 PDT"]
[Termination "AttilaTurzo won on time"]

1. e4 {[%clk 0:03:00.9]} 1... c5 {[%clk 0:02:58.7]} 2. Nf3 {[%clk 0:03:00.5]}
2... d6 {[%clk 0:02:57.6]} 3. d4 {[%clk 0:03:01.4]} 3... cxd4 {[%clk 0:02:56.5]}
4. Nxd4 {[%clk 0:03:02.3]} 4... Nf6 {[%clk 0:02:56.7]} 5. Nc3 {[%clk 0:03:02.9]}
5... a6 {[%clk 0:02:56.9]} 6. Bg5 {[%clk 0:03:03.1]} 6... e6 {[%clk 0:02:56.8]}
7. f4 {[%clk 0:03:03.4]} 7... Be7 {[%clk 0:02:57.1]} 8. Qf3 {[%clk 0:03:04]}
8... Qc7 {[%clk 0:02:56]} 9. O-O-O {[%clk 0:03:04.4]} 9... Nbd7 {[%clk
0:02:56.3]} 10. g4 {[%clk 0:03:03.5]} 10... h6 {[%clk 0:02:55.5]} 11. Bxf6
{[%clk 0:03:03.6]} 11... Bxf6 {[%clk 0:02:55.7]} 12. h4 {[%clk 0:03:02.1]} 12...
Nb6 {[%clk 0:02:55.5]} 13. g5 {[%clk 0:03:01]} 13... Bxd4 {[%clk 0:02:54]} 14.
Rxd4 {[%clk 0:03:00.2]} 14... Bd7 {[%clk 0:02:54.6]} 15. Bg2 {[%clk 0:02:41]}
15... Bc6 {[%clk 0:02:52.2]} 16. Rhd1 {[%clk 0:02:37.2]} 16... hxg5 {[%clk
0:02:20.6]} 17. hxg5 {[%clk 0:02:36.1]} 17... O-O-O {[%clk 0:02:19.2]} 18. R4d2
{[%clk 0:01:49.9]} 18... Kb8 {[%clk 0:01:53.7]} 19. b3 {[%clk 0:01:45.3]} 19...
d5 {[%clk 0:01:36.9]} 20. e5 {[%clk 0:01:40.8]} 20... Nd7 {[%clk 0:01:02.7]} 21.
Qf2 {[%clk 0:01:33.7]} 21... Qa5 {[%clk 0:00:59.5]} 22. Kb2 {[%clk 0:01:31]}
22... Nb6 {[%clk 0:00:56.6]} 23. Ne2 {[%clk 0:01:26.5]} 23... Rc8 {[%clk
0:00:37.1]} 24. Nd4 {[%clk 0:01:18.4]} 24... Qb4 {[%clk 0:00:31.7]} 25. Ka1
{[%clk 0:00:57.5]} 25... Bd7 {[%clk 0:00:18.1]} 26. Rd3 {[%clk 0:00:52.1]} 26...
Rc7 {[%clk 0:00:14.9]} 27. Qd2 {[%clk 0:00:45.8]} 27... Qa3 {[%clk 0:00:12.7]}
28. Qc1 {[%clk 0:00:43.9]} 28... Qb4 {[%clk 0:00:12.8]} 29. Qd2 {[%clk
0:00:37.9]} 29... Qa3 {[%clk 0:00:12.6]} 30. c3 {[%clk 0:00:38.3]} 30... Rhc8
{[%clk 0:00:11.3]} 31. Rc1 {[%clk 0:00:35.6]} 31... Bb5 {[%clk 0:00:10.7]} 32.
Nxb5 {[%clk 0:00:33.8]} 32... axb5 {[%clk 0:00:11.6]} 33. Rd4 {[%clk 0:00:31.1]}
33... Qa5 {[%clk 0:00:08]} 34. Kb2 {[%clk 0:00:30.9]} 34... Rc5 {[%clk
0:00:07.2]} 35. Bf1 {[%clk 0:00:30.4]} 35... Kc7 {[%clk 0:00:07.1]} 36. b4
{[%clk 0:00:25.3]} 1-0

[Event "*** Titled Tuesday Blitz"]
[Site "Chess.com"]
[Date "2020.05.26"]
[Round "9"]
[White "Mbneu"]
[Black "GM4life"]
[Result "1/2-1/2"]
[WhiteElo "2237"]
[BlackElo "2369"]
[TimeControl "180+1"]
[EndTime "11:51:58 PDT"]
[Termination "Game drawn by agreement"]

1. d4 {[%clk 0:03:00.9]} 1... Nf6 {[%clk 0:02:58.7]} 2. c4 {[%clk 0:03:00.3]}
2... g6 {[%clk 0:02:58.4]} 3. Nc3 {[%clk 0:02:59.7]} 3... Bg7 {[%clk 0:02:58.5]}
4. e4 {[%clk 0:02:59.2]} 4... d6 {[%clk 0:02:59.4]} 5. f4 {[%clk 0:02:59.7]}
5... O-O {[%clk 0:03:00.3]} 6. Nf3 {[%clk 0:03:00]} 6... c5 {[%clk 0:02:59.2]}
7. d5 {[%clk 0:03:00.5]} 7... b5 {[%clk 0:02:58.5]} 8. cxb5 {[%clk 0:02:59.8]}
8... a6 {[%clk 0:02:58.5]} 9. a4 {[%clk 0:02:59.7]} 9... axb5 {[%clk 0:02:57.9]}
10. Bxb5 {[%clk 0:02:58.6]} 10... Ba6 {[%clk 0:02:58.6]} 11. Bd2 {[%clk
0:02:57.8]} 11... Nbd7 {[%clk 0:02:55]} 12. O-O {[%clk 0:02:56.8]} 12... Qb6
{[%clk 0:02:51.4]} 13. Qe2 {[%clk 0:02:52.3]} 13... Bxb5 {[%clk 0:02:48.6]} 14.
axb5 {[%clk 0:02:51.6]} 14... Rfc8 {[%clk 0:02:23]} 15. Rxa8 {[%clk 0:02:27.2]}
15... Rxa8 {[%clk 0:02:21.2]} 16. e5 {[%clk 0:02:27.6]} 16... dxe5 {[%clk
0:02:14]} 17. fxe5 {[%clk 0:02:27]} 17... Ng4 {[%clk 0:02:10.5]} 18. e6 {[%clk
0:02:25.7]} 18... fxe6 {[%clk 0:02:02.9]} 19. Ng5 {[%clk 0:02:25.9]} 19... Nge5
{[%clk 0:01:51.3]} 20. Nxe6 {[%clk 0:02:18.2]} 20... Bf6 {[%clk 0:01:40.8]} 21.
Ne4 {[%clk 0:01:52.9]} 21... Ra2 {[%clk 0:01:26.1]} 22. Nxf6+ {[%clk 0:01:35.2]}
22... exf6 {[%clk 0:01:26.2]} 23. Bc3 {[%clk 0:01:34]} 23... c4+ {[%clk
0:01:25.8]} 24. Kh1 {[%clk 0:01:30.9]} 24... Qxb5 {[%clk 0:01:21.9]} 25. Qe4
{[%clk 0:00:45]} 25... f5 {[%clk 0:01:13.7]} 26. Qd4 {[%clk 0:00:40.3]} 26...
Qb3 {[%clk 0:00:55.5]} 27. g4 {[%clk 0:00:39.1]} 27... Qc2 {[%clk 0:00:52.6]}
28. gxf5 {[%clk 0:00:33.9]} 28... Qe2 {[%clk 0:00:49.3]} 29. Qf4 {[%clk
0:00:20.1]} 29... Nd3 {[%clk 0:00:38.8]} 30. Qf3 {[%clk 0:00:17.5]} 30... Qxf3+
{[%clk 0:00:32.6]} 31. Rxf3 {[%clk 0:00:18.4]} 31... gxf5 {[%clk 0:00:24]} 32.
Rg3+ {[%clk 0:00:17.6]} 32... Kf7 {[%clk 0:00:22.7]} 33. Rg7+ {[%clk 0:00:17.4]}
33... Ke8 {[%clk 0:00:20.5]} 34. Nc7+ {[%clk 0:00:16.8]} 34... Kd8 {[%clk
0:00:19.8]} 35. Ne6+ {[%clk 0:00:17.1]} 35... Kc8 {[%clk 0:00:19.1]} 36. Rg8+
{[%clk 0:00:17.3]} 36... Kb7 {[%clk 0:00:19.2]} 37. Rg7 {[%clk 0:00:17.5]} 37...
Ra1+ {[%clk 0:00:16.4]} 38. Kg2 {[%clk 0:00:17]} 38... Kc8 {[%clk 0:00:16.9]}
39. Rg8+ {[%clk 0:00:16.6]} 39... Kb7 {[%clk 0:00:16.5]} 40. Rg7 {[%clk
0:00:15.9]} 40... Kc8 {[%clk 0:00:14.2]} 41. Rg8+ {[%clk 0:00:15.8]} 41... Kb7
{[%clk 0:00:12.7]} 1/2-1/2

[Event "*** Titled Tuesday Blitz"]
[Site "Chess.com"]
[Date "2020.05.26"]
[Round "9"]
[White "platy3"]
[Black "Beca95"]
[Result "1-0"]
[WhiteElo "2723"]
[BlackElo "2850"]
[TimeControl "180+1"]
[EndTime "11:51:59 PDT"]
[Termination "platy3 won by checkmate"]

1. e4 {[%clk 0:02:58]} 1... c6 {[%clk 0:03:00.4]} 2. d4 {[%clk 0:02:53.7]} 2...
d5 {[%clk 0:03:01.3]} 3. e5 {[%clk 0:02:54.2]} 3... c5 {[%clk 0:03:01.3]} 4.
dxc5 {[%clk 0:02:53.4]} 4... e6 {[%clk 0:03:01.7]} 5. a3 {[%clk 0:02:50.4]} 5...
Bxc5 {[%clk 0:03:01.4]} 6. Nf3 {[%clk 0:02:49.3]} 6... Ne7 {[%clk 0:03:00.6]} 7.
Bd3 {[%clk 0:02:48.3]} 7... Ng6 {[%clk 0:03:00.4]} 8. O-O {[%clk 0:02:46.3]}
8... Nd7 {[%clk 0:03:00.5]} 9. b4 {[%clk 0:02:40.6]} 9... Be7 {[%clk 0:02:59.4]}
10. Bb2 {[%clk 0:02:38.8]} 10... a5 {[%clk 0:02:59.6]} 11. b5 {[%clk 0:02:26.6]}
11... Nf4 {[%clk 0:02:59.5]} 12. Re1 {[%clk 0:02:09.1]} 12... g5 {[%clk
0:02:54.1]} 13. Bf1 {[%clk 0:02:04.7]} 13... g4 {[%clk 0:02:54.2]} 14. Nd4
{[%clk 0:02:04.4]} 14... h5 {[%clk 0:02:54.4]} 15. Nd2 {[%clk 0:01:58.3]} 15...
Ng6 {[%clk 0:02:54.3]} 16. c4 {[%clk 0:01:55.8]} 16... Ndxe5 {[%clk 0:02:46]}
17. N4b3 {[%clk 0:01:44.1]} 17... Bf6 {[%clk 0:02:43.3]} 18. Qc2 {[%clk
0:01:42.3]} 18... a4 {[%clk 0:02:38.7]} 19. Nc5 {[%clk 0:01:37.4]} 19... d4
{[%clk 0:02:01.1]} 20. Nde4 {[%clk 0:01:31]} 20... Bg7 {[%clk 0:01:39.8]} 21.
Rad1 {[%clk 0:01:31.1]} 21... f5 {[%clk 0:01:21.6]} 22. Bxd4 {[%clk 0:01:22.3]}
22... Nf3+ {[%clk 0:00:55.8]} 23. gxf3 {[%clk 0:01:22.3]} 23... Bxd4 {[%clk
0:00:55.8]} 24. Ng3 {[%clk 0:00:53.3]} 24... Kf7 {[%clk 0:00:47.2]} 25. Nxe6
{[%clk 0:00:50.9]} 25... Bxe6 {[%clk 0:00:43.2]} 26. Rxe6 {[%clk 0:00:51]} 26...
Nh4 {[%clk 0:00:43.4]} 27. Nxf5 {[%clk 0:00:32.2]} 27... Nxf3+ {[%clk
0:00:38.9]} 28. Kh1 {[%clk 0:00:31.2]} 28... Kxe6 {[%clk 0:00:21.5]} 29. Nxd4+
{[%clk 0:00:26]} 29... Nxd4 {[%clk 0:00:20.9]} 30. Qe4+ {[%clk 0:00:23.6]} 30...
Kf6 {[%clk 0:00:20.6]} 31. Rxd4 {[%clk 0:00:22]} 31... Qc7 {[%clk 0:00:16.2]}
32. Bd3 {[%clk 0:00:19.5]} 32... Rh6 {[%clk 0:00:07.9]} 33. Qf5+ {[%clk
0:00:11]} 33... Ke7 {[%clk 0:00:08.2]} 34. Re4+ {[%clk 0:00:09.5]} 34... Kd6
{[%clk 0:00:07.2]} 35. Qd5# {[%clk 0:00:09.3]} 1-0

[Event "*** Titled Tuesday Blitz"]
[Site "Chess.com"]
[Date "2020.05.26"]
[Round "9"]
[White "chessplayer9919"]
[Black "ZarinaShafigullina"]
[Result "1-0"]
[WhiteElo "2487"]
[BlackElo "2342"]
[TimeControl "180+1"]
[EndTime "11:52:00 PDT"]
[Termination "chessplayer9919 won by checkmate"]

1. d4 {[%clk 0:03:00.9]} 1... Nf6 {[%clk 0:02:59.7]} 2. c4 {[%clk 0:03:00.9]}
2... e6 {[%clk 0:03:00.3]} 3. Nf3 {[%clk 0:03:00.2]} 3... b6 {[%clk 0:03:00.8]}
4. g3 {[%clk 0:02:59.9]} 4... Ba6 {[%clk 0:03:00.9]} 5. Qc2 {[%clk 0:02:59.3]}
5... Bb7 {[%clk 0:03:00]} 6. Bg2 {[%clk 0:02:59.5]} 6... c5 {[%clk 0:03:00.1]}
7. d5 {[%clk 0:02:59.5]} 7... exd5 {[%clk 0:03:00]} 8. cxd5 {[%clk 0:03:00.4]}
8... Nxd5 {[%clk 0:02:43.5]} 9. O-O {[%clk 0:02:59.5]} 9... Be7 {[%clk
0:02:39.3]} 10. Rd1 {[%clk 0:02:53.4]} 10... Nb4 {[%clk 0:02:36.4]} 11. Qb3
{[%clk 0:02:49.2]} 11... O-O {[%clk 0:02:35.8]} 12. a3 {[%clk 0:02:43.8]} 12...
N4a6 {[%clk 0:02:33.9]} 13. Nc3 {[%clk 0:02:27.5]} 13... Nc7 {[%clk 0:02:32]}
14. Bf4 {[%clk 0:02:17.9]} 14... Nc6 {[%clk 0:02:30.2]} 15. Bxc7 {[%clk
0:02:07.4]} 15... Qxc7 {[%clk 0:02:29]} 16. Nd5 {[%clk 0:02:06.3]} 16... Qd8
{[%clk 0:02:24]} 17. Bh3 {[%clk 0:01:54.8]} 17... Re8 {[%clk 0:02:21.1]} 18.
Bxd7 {[%clk 0:01:50.3]} 18... Na5 {[%clk 0:02:01.5]} 19. Qa4 {[%clk 0:01:40.2]}
19... Rf8 {[%clk 0:01:55.3]} 20. b4 {[%clk 0:01:13.5]} 20... cxb4 {[%clk
0:01:48.7]} 21. axb4 {[%clk 0:01:07]} 21... Nc4 {[%clk 0:01:48.4]} 22. Bc6
{[%clk 0:00:56.3]} 22... Nb2 {[%clk 0:01:41.9]} 23. Bxb7 {[%clk 0:00:23.1]}
23... Nxa4 {[%clk 0:01:41.1]} 24. Bxa8 {[%clk 0:00:24]} 24... Qe8 {[%clk
0:00:53.3]} 25. Bc6 {[%clk 0:00:23.2]} 25... Qd8 {[%clk 0:00:47.7]} 26. Nf6+
{[%clk 0:00:19.1]} 26... Bxf6 {[%clk 0:00:47.4]} 27. Rxd8 {[%clk 0:00:20]} 27...
Rxd8 {[%clk 0:00:46.9]} 28. Rxa4 {[%clk 0:00:19.2]} 28... h6 {[%clk 0:00:45.4]}
29. Rxa7 {[%clk 0:00:17.7]} 29... Rd1+ {[%clk 0:00:45.7]} 30. Kg2 {[%clk
0:00:17.9]} 30... g6 {[%clk 0:00:45.4]} 31. e4 {[%clk 0:00:16.8]} 31... Rb1
{[%clk 0:00:44.8]} 32. b5 {[%clk 0:00:16.6]} 32... Rb4 {[%clk 0:00:44.3]} 33. e5
{[%clk 0:00:16.7]} 33... Bg7 {[%clk 0:00:44.5]} 34. h4 {[%clk 0:00:15.7]} 34...
Rb3 {[%clk 0:00:44]} 35. Be8 {[%clk 0:00:12.7]} 35... Kf8 {[%clk 0:00:40.1]} 36.
Bxf7 {[%clk 0:00:10.5]} 36... Rxb5 {[%clk 0:00:39.6]} 37. e6 {[%clk 0:00:09.3]}
37... Bf6 {[%clk 0:00:38.7]} 38. Bxg6 {[%clk 0:00:08]} 38... Be7 {[%clk
0:00:38.6]} 39. h5 {[%clk 0:00:08.5]} 39... Rb2 {[%clk 0:00:37.8]} 40. Nd4
{[%clk 0:00:07]} 40... Bc5 {[%clk 0:00:37.5]} 41. Nf5 {[%clk 0:00:05.6]} 41...
Rxf2+ {[%clk 0:00:37]} 42. Kh3 {[%clk 0:00:06]} 42... Rf3 {[%clk 0:00:35.8]} 43.
Ra8# {[%clk 0:00:06.1]} 1-0

[Event "*** Titled Tuesday Blitz"]
[Site "Chess.com"]
[Date "2020.05.26"]
[Round "9"]
[White "Leonid_Starozhilov"]
[Black "IMinTheWings"]
[Result "0-1"]
[WhiteElo "2622"]
[BlackElo "2159"]
[TimeControl "180+1"]
[EndTime "11:52:03 PDT"]
[Termination "IMinTheWings won on time"]

1. b3 {[%clk 0:03:00.9]} 1... e5 {[%clk 0:02:59.7]} 2. Bb2 {[%clk 0:02:59.4]}
2... Nc6 {[%clk 0:03:00.3]} 3. e3 {[%clk 0:02:59.8]} 3... Nf6 {[%clk 0:03:00.5]}
4. Bb5 {[%clk 0:03:00.3]} 4... Bd6 {[%clk 0:03:01.2]} 5. Ne2 {[%clk 0:03:00.7]}
5... a6 {[%clk 0:03:01.4]} 6. Bxc6 {[%clk 0:03:00.6]} 6... dxc6 {[%clk
0:03:02.3]} 7. Nbc3 {[%clk 0:03:01.3]} 7... Qe7 {[%clk 0:03:01.3]} 8. e4 {[%clk
0:02:59.7]} 8... Be6 {[%clk 0:02:59.5]} 9. Ng3 {[%clk 0:02:58.7]} 9... O-O-O
{[%clk 0:02:59.3]} 10. d3 {[%clk 0:02:57.7]} 10... h5 {[%clk 0:02:59.3]} 11. h3
{[%clk 0:02:55.8]} 11... h4 {[%clk 0:02:57.1]} 12. Nge2 {[%clk 0:02:55.7]} 12...
Bc5 {[%clk 0:02:53.6]} 13. Qd2 {[%clk 0:02:49.6]} 13... Nh5 {[%clk 0:02:47.9]}
14. Na4 {[%clk 0:02:40.5]} 14... Ba7 {[%clk 0:02:47.8]} 15. Rf1 {[%clk 0:02:27]}
15... f6 {[%clk 0:02:38.2]} 16. O-O-O {[%clk 0:02:25.9]} 16... g5 {[%clk
0:02:38.2]} 17. Kb1 {[%clk 0:02:23.4]} 17... g4 {[%clk 0:02:33.1]} 18. hxg4
{[%clk 0:02:24.3]} 18... Bxg4 {[%clk 0:02:34]} 19. f3 {[%clk 0:02:24.5]} 19...
Be6 {[%clk 0:02:32.9]} 20. Qa5 {[%clk 0:02:08.7]} 20... h3 {[%clk 0:02:26.2]}
21. g4 {[%clk 0:01:58.6]} 21... Ng7 {[%clk 0:02:21.3]} 22. d4 {[%clk 0:01:56.4]}
22... exd4 {[%clk 0:02:13]} 23. Bxd4 {[%clk 0:01:55.4]} 23... Bxd4 {[%clk
0:02:05.7]} 24. Nxd4 {[%clk 0:01:53.7]} 24... h2 {[%clk 0:01:56.4]} 25. Rh1
{[%clk 0:01:31.3]} 25... Qd6 {[%clk 0:01:38.6]} 26. Nc5 {[%clk 0:01:26.5]} 26...
Kb8 {[%clk 0:01:37.2]} 27. Qb4 {[%clk 0:00:23.8]} 27... b6 {[%clk 0:01:37]} 28.
Ncxe6 {[%clk 0:00:21.6]} 28... Nxe6 {[%clk 0:01:13.9]} 29. Qxd6 {[%clk
0:00:07.6]} 29... Rxd6 {[%clk 0:01:14.8]} 30. Nxe6 {[%clk 0:00:07.8]} 30...
Rxd1+ {[%clk 0:01:13.7]} 31. Rxd1 {[%clk 0:00:08.2]} 31... h1=Q {[%clk
0:01:14.4]} 32. Rxh1 {[%clk 0:00:08.8]} 32... Rxh1+ {[%clk 0:01:14.2]} 33. Kb2
{[%clk 0:00:09.7]} 33... Rf1 {[%clk 0:01:12.3]} 34. f4 {[%clk 0:00:08]} 34...
Kc8 {[%clk 0:01:11.6]} 35. g5 {[%clk 0:00:04.5]} 35... fxg5 {[%clk 0:01:11.5]}
36. fxg5 {[%clk 0:00:04.7]} 36... Kd7 {[%clk 0:01:12]} 37. Nd4 {[%clk
0:00:03.9]} 37... Rg1 {[%clk 0:01:08.9]} 38. Nf3 {[%clk 0:00:03.6]} 38... Rg3
{[%clk 0:01:08.9]} 39. Ne5+ {[%clk 0:00:03.9]} 39... Kd6 {[%clk 0:01:07.6]} 40.
Nc4+ {[%clk 0:00:04.3]} 40... Kc5 {[%clk 0:01:04.1]} 41. Ne5 {[%clk 0:00:02.8]}
41... Rxg5 {[%clk 0:01:02.2]} 42. Nd3+ {[%clk 0:00:03.3]} 42... Kd6 {[%clk
0:01:01.7]} 43. e5+ {[%clk 0:00:03.6]} 43... Ke6 {[%clk 0:01:00]} 44. b4 {[%clk
0:00:03.2]} 44... Rg3 {[%clk 0:00:58.2]} 45. a4 {[%clk 0:00:02.7]} 45... Rxd3
{[%clk 0:00:49.6]} 46. cxd3 {[%clk 0:00:03.1]} 46... Kxe5 {[%clk 0:00:50.3]} 47.
Kc3 {[%clk 0:00:03.6]} 47... Kd5 {[%clk 0:00:50.9]} 48. a5 {[%clk 0:00:01.9]}
48... b5 {[%clk 0:00:46.9]} 49. d4 {[%clk 0:00:01.7]} 49... Ke4 {[%clk
0:00:47.1]} 0-1

[Event "*** Titled Tuesday Blitz"]
[Site "Chess.com"]
[Date "2020.05.26"]
[Round "9"]
[White "nitpicker"]
[Black "Kapibara_Warri0r"]
[Result "0-1"]
[WhiteElo "2292"]
[BlackElo "2138"]
[TimeControl "180+1"]
[EndTime "11:52:05 PDT"]
[Termination "Kapibara_Warri0r won on time"]

1. d4 {[%clk 0:03:00.9]} 1... Nf6 {[%clk 0:02:59.3]} 2. c4 {[%clk 0:03:00.2]}
2... g6 {[%clk 0:02:58.9]} 3. Nc3 {[%clk 0:02:59.6]} 3... Bg7 {[%clk 0:02:58.2]}
4. e4 {[%clk 0:02:59.6]} 4... d6 {[%clk 0:02:56.1]} 5. Be2 {[%clk 0:02:59.5]}
5... O-O {[%clk 0:02:54.5]} 6. Nf3 {[%clk 0:02:59.6]} 6... e5 {[%clk 0:02:52.9]}
7. O-O {[%clk 0:02:59.4]} 7... Nc6 {[%clk 0:02:45.7]} 8. d5 {[%clk 0:02:59.5]}
8... Ne7 {[%clk 0:02:45.8]} 9. b4 {[%clk 0:02:59.5]} 9... Nd7 {[%clk 0:02:43.7]}
10. a4 {[%clk 0:02:48.6]} 10... a5 {[%clk 0:02:39.8]} 11. Ba3 {[%clk 0:02:42.7]}
11... f5 {[%clk 0:02:24.1]} 12. Ng5 {[%clk 0:02:37.9]} 12... Nf6 {[%clk
0:02:22.9]} 13. Qb3 {[%clk 0:02:27.9]} 13... h6 {[%clk 0:02:20.3]} 14. Ne6
{[%clk 0:02:27.6]} 14... Bxe6 {[%clk 0:02:19.8]} 15. dxe6 {[%clk 0:02:28.5]}
15... fxe4 {[%clk 0:02:15.7]} 16. bxa5 {[%clk 0:02:23.8]} 16... Qc8 {[%clk
0:02:06.3]} 17. Nd5 {[%clk 0:02:21.3]} 17... Re8 {[%clk 0:01:44.9]} 18. Rfb1
{[%clk 0:02:19.9]} 18... Rxa5 {[%clk 0:01:27.2]} 19. Bb4 {[%clk 0:01:41.5]}
19... Ra7 {[%clk 0:01:22.2]} 20. Nxe7+ {[%clk 0:01:41.3]} 20... Rxe7 {[%clk
0:01:21.6]} 21. c5 {[%clk 0:01:42.2]} 21... Qxe6 {[%clk 0:01:16.4]} 22. cxd6
{[%clk 0:01:14.9]} 22... Qxb3 {[%clk 0:01:09.8]} 23. Rxb3 {[%clk 0:01:15.3]}
23... cxd6 {[%clk 0:01:09.3]} 24. Bxd6 {[%clk 0:01:14]} 24... Re8 {[%clk
0:00:57.1]} 25. Bc4+ {[%clk 0:01:02.1]} 25... Kh7 {[%clk 0:00:54.1]} 26. Bc5
{[%clk 0:00:55.2]} 26... Ra5 {[%clk 0:00:49.9]} 27. Bb6 {[%clk 0:00:45.4]} 27...
Raa8 {[%clk 0:00:46.9]} 28. Be3 {[%clk 0:00:40.6]} 28... Re7 {[%clk 0:00:35.8]}
29. a5 {[%clk 0:00:36]} 29... Rc7 {[%clk 0:00:33.7]} 30. Be2 {[%clk 0:00:28.7]}
30... Nd5 {[%clk 0:00:32.2]} 31. Bd2 {[%clk 0:00:20.1]} 31... Rc2 {[%clk
0:00:30.4]} 32. Rd1 {[%clk 0:00:12.8]} 32... Nf4 {[%clk 0:00:28]} 33. Bf1 {[%clk
0:00:12]} 33... Ra2 {[%clk 0:00:23.9]} 34. Be1 {[%clk 0:00:08.9]} 34... Ra7
{[%clk 0:00:22.9]} 35. g3 {[%clk 0:00:07.6]} 35... Ne6 {[%clk 0:00:22.2]} 36.
Rd6 {[%clk 0:00:06.5]} 36... Nd4 {[%clk 0:00:22.1]} 37. Re3 {[%clk 0:00:03.3]}
37... Nf3+ {[%clk 0:00:20.6]} 38. Kg2 {[%clk 0:00:03.2]} 38... Nxe1+ {[%clk
0:00:20.1]} 39. Rxe1 {[%clk 0:00:03.2]} 39... R2xa5 {[%clk 0:00:20.5]} 40. Rxe4
{[%clk 0:00:01.8]} 40... b5 {[%clk 0:00:20.1]} 0-1

[Event "*** Titled Tuesday Blitz"]
[Site "Chess.com"]
[Date "2020.05.26"]
[Round "9"]
[White "DucksParadise"]
[Black "gumimis"]
[Result "1-0"]
[WhiteElo "2061"]
[BlackElo "2178"]
[TimeControl "180+1"]
[EndTime "11:52:05 PDT"]
[Termination "DucksParadise won on time"]

1. e4 {[%clk 0:03:00.9]} 1... c5 {[%clk 0:02:59.5]} 2. Nf3 {[%clk 0:03:00]} 2...
d6 {[%clk 0:02:55.6]} 3. d4 {[%clk 0:02:59.9]} 3... cxd4 {[%clk 0:02:56.5]} 4.
Nxd4 {[%clk 0:03:00.8]} 4... Nf6 {[%clk 0:02:57.1]} 5. Nc3 {[%clk 0:03:01.3]}
5... a6 {[%clk 0:02:57.7]} 6. Bg5 {[%clk 0:03:00.4]} 6... e6 {[%clk 0:02:57.2]}
7. f4 {[%clk 0:02:59.2]} 7... h6 {[%clk 0:02:57]} 8. Bh4 {[%clk 0:02:58.1]} 8...
Qb6 {[%clk 0:02:57.3]} 9. Qd2 {[%clk 0:02:58.2]} 9... Qxb2 {[%clk 0:02:57]} 10.
Rb1 {[%clk 0:02:57.9]} 10... Qa3 {[%clk 0:02:57.4]} 11. e5 {[%clk 0:02:57.6]}
11... dxe5 {[%clk 0:02:52.2]} 12. fxe5 {[%clk 0:02:58.5]} 12... g5 {[%clk
0:02:50.7]} 13. exf6 {[%clk 0:02:53.2]} 13... gxh4 {[%clk 0:02:50.6]} 14. Be2
{[%clk 0:02:42.9]} 14... Qa5 {[%clk 0:02:45.5]} 15. O-O {[%clk 0:02:20.4]} 15...
Nd7 {[%clk 0:02:42]} 16. Qe3 {[%clk 0:01:44]} 16... Bc5 {[%clk 0:02:28.3]} 17.
Ne4 {[%clk 0:01:36.1]} 17... h3 {[%clk 0:01:57.3]} 18. g3 {[%clk 0:01:04.2]}
18... Qxa2 {[%clk 0:01:29.3]} 19. Nxc5 {[%clk 0:00:54.5]} 19... Nxc5 {[%clk
0:01:29.2]} 20. Nf5 {[%clk 0:00:33.8]} 20... Qd5 {[%clk 0:01:14.5]} 21. Ng7+
{[%clk 0:00:32.1]} 21... Kf8 {[%clk 0:01:05.1]} 22. Bf3 {[%clk 0:00:33]} 22...
Qg5 {[%clk 0:00:51.5]} 23. Qxg5 {[%clk 0:00:20.5]} 23... hxg5 {[%clk 0:00:51.3]}
24. Rfd1 {[%clk 0:00:19.4]} 24... Nd7 {[%clk 0:00:31.1]} 25. Bxb7 {[%clk
0:00:17]} 25... Bxb7 {[%clk 0:00:27.3]} 26. Rxd7 {[%clk 0:00:16.3]} 26... Bd5
{[%clk 0:00:20.5]} 27. c4 {[%clk 0:00:14]} 27... Bxc4 {[%clk 0:00:17.6]} 28.
Rbb7 {[%clk 0:00:13]} 28... Kg8 {[%clk 0:00:13.4]} 29. Rxf7 {[%clk 0:00:11.8]}
29... Rh6 {[%clk 0:00:10.9]} 30. Nf5 {[%clk 0:00:10.8]} 30... Rh5 {[%clk
0:00:04.2]} 31. Rg7+ {[%clk 0:00:08.9]} 1-0